[Event "24th Hoogeschool Zeeland 2022"]
[Site "Vlissingen"]
[Date "2022.08.11"]
[Round "7.20"]
[White "Baarslag, Ed"]
[Black "Van Wijk, Peter"]
[Result "0-1"]
[ECO "A61"]
[WhiteElo "2161"]
[BlackElo "2016"]
[Annotator "TA"]
[PlyCount "52"]
[EventDate "2022.08.05"]
[EventType "swiss"]
[EventCountry "NED"]
[SourceTitle "playchess.com"]
[Source "ChessBase"]
[SourceQuality "1"]
[TimeControl "40/5400+30:1800+30"]

{[%evp 16,51,41,27,31,29,33,41,33,31,22,31,35,24,41,34,39,20,27,16,49,58,49,-26,-42,-69,-72,-161,-145,-371,-375,-333,-339,-351,-349,-1038,-1032,-29999]} 1. d4 {[%emt 0:00:01]} Nf6 {[%emt 0:02:36]} 2. c4 {[%emt 0:00:57]} c5 {[%emt 0:00:31]} 3. d5 {[%emt 0:00:13]} e6 {[%emt 0:00:02]} 4. Nc3 {[%emt 0:00:07]} exd5 {[%emt 0:00:04]} 5. cxd5 {[%emt 0:00:06]} d6 {[%emt 0:00:06]} 6. Nf3 {[%emt 0:00:38]} g6 {[%emt 0:02:28]} 7. Bf4 {[%emt 0:00:42]} a6 {[%emt 0:07:40]} 8. a4 {[%emt 0:01:08]} Bg7 {[%emt 0:02:40]} 9. e3 {[%emt 0:00:15]} Bg4 {[%emt 0:05:50] A61: Modern Benoni: Nf3 without early e4.} 10. Be2 {[%emt 0:01:22]} O-O {[%emt 0:05:32]} 11. h3 {[%emt 0:00:55] was the old line (11.0-0).} Bxf3 {[%emt 0:00:09] White is slightly better.} 12. Bxf3 {[%emt 0:00:07]} Qe7 {[%emt 0:09:28]} 13. O-O {[%emt 0:02:26]} Nbd7 {[%emt 0:01:15][%cal Bb8d7,Bd7e5,Be5g6,Bg6h4][%mdl 32]} 14. a5 {[%emt 0:06:40] [#]} Ne5 $146 {[%emt 0:03:21]} ({Predecessor:} 14... Rab8 15. Qc2 Rfc8 16. Ra2 Ne5 17. Be2 Nfd7 18. Bg3 c4 19. Na4 b5 20. axb6 Nxb6 {1-0 (42) Druska,J (2506)-Krak,T (2310) Slovakia 2021}) 15. Be2 {[%emt 0:00:30]} Nfd7 {[%emt 0:00:20]} 16. Bh2 {[%emt 0:01:56] [#] Hoping for f4.} f5 {[%emt 0:01:45]} 17. Re1 {[%emt 0:01:22]} g5 {[%emt 0:23:11]} 18. f4 {[%emt 0:04:15]} Ng6 {[%emt 0:02:11]} 19. fxg5 {[%emt 0:10:55]} (19. Bd3 $14) 19... Be5 $1 $11 {[%emt 0:18:11]} 20. Ra4 {[%emt 0:07:21]} Qxg5 {[%emt 0:00:57]} 21. Bf3 {[%emt 0:04:21]} (21. Qd2 $17) 21... Rae8 $19 {[%emt 0:02:11]} 22. e4 $2 {[%emt 0:08:37] White does not recover from this.} (22. Kh1 $17) 22... Nh4 {[%emt 0:03:30]} 23. Rf1 {[%emt 0:01:38]} Bxh2+ {[%emt 0:04:38]} ({Worse is} 23... fxe4 24. Nxe4 Bd4+ 25. Kh1 $17 (25. Qxd4 $2 Nxf3+ 26. Kh1 cxd4 $19)) 24. Kxh2 {[%emt 0:00:06]} Ne5 {[%emt 0:00:02]} 25. exf5 $2 {[%emt 0:03:43]} (25. Rf2 fxe4 26. Nxe4 Nexf3+ 27. gxf3 Qf4+ 28. Kh1) 25... Nexf3+ {[%emt 0:00:23][%mdl 64] [#] Remove Defender} 26. gxf3 {[%emt 0:00:37]} Qg2# {[%emt 0:00:02] Weighted Error Value: White=0.85/Black=0.02 (flawless)} 0-1

[Event "24th Hoogeschool Zeeland 2022"]
[Site "Vlissingen"]
[Date "2022.08.11"]
[Round "7.21"]
[White "Duchene, Rene"]
[Black "Lacrosse, Marc"]
[Result "1/2-1/2"]
[ECO "D30"]
[WhiteElo "2137"]
[BlackElo "2003"]
[Annotator "TA"]
[PlyCount "35"]
[EventDate "2022.08.05"]
[EventType "swiss"]
[EventCountry "NED"]
[SourceTitle "playchess.com"]
[Source "ChessBase"]
[SourceQuality "1"]
[TimeControl "40/5400+30:1800+30"]

{[%evp 9,35,12,0,0,15,0,0,0,0,0,0,0,59,59,52,56,57,65,67,43,55,54,73,73,83,68,77,70]} 1. Nf3 {[%emt 0:00:06]} d5 {[%emt 0:05:15]} 2. d4 {[%emt 0:00:49]} Nf6 {[%emt 0:00:42]} 3. c4 {[%emt 0:00:06]} e6 {[%emt 0:00:20]} 4. e3 {[%emt 0:00:29]} Nbd7 {[%emt 0:08:42]} 5. Bd3 {[%emt 0:02:38]} dxc4 {[%emt 0:05:40]} 6. Bxc4 {[%emt 0:00:39] D30: Queen's Gambit Declined: Systems without Nc3.} a6 {[%emt 0:00:52]} 7. a4 {[%emt 0:04:11]} b6 {[%emt 0:04:05]} 8. O-O {[%emt 0:02:53] The position is equal.} Bb7 {[%emt 0:00:46]} 9. Qe2 {[%emt 0:01:36]} Bd6 {[%emt 0:04:15]} 10. Nc3 {[%emt 0:01:44] [#]} Qe7 $146 {[%emt 0:03:12]} (10... c5 $11) ({Predecessor:} 10... c5 11. b3 O-O 12. Bb2 cxd4 13. exd4 Qb8 {0-1 (115) Shinkevich,V (2440)-Grachev,B (2621) Moscow 2019}) 11. e4 $14 {[%emt 0:09:04] [#] Threatens to win with e5.} e5 $1 {[%emt 0:02:44]} 12. d5 {[%emt 0:00:27]} h6 {[%emt 0:06:25]} 13. Nh4 {[%emt 0:05:48]} g6 {[%emt 0:04:29] Against Nf5} 14. g3 {[%emt 0:02:13]} Nc5 {[%emt 0:06:21]} 15. f3 {[%emt 0:02:59]} Bc8 {[%emt 0:04:28]} 16. Be3 {[%emt 0:01:39]} Ncd7 {[%emt 0:04:31]} 17. Qd2 {[%emt 0:02:02] White is more active.} Bc5 {[%emt 0:00:44]} 18. Rfc1 {[%emt 0:05:55] Weighted Error Value: White=0.04 (flawless) /Black=0.11 (very precise)} 1/2-1/2

[Event "24th Hoogeschool Zeeland 2022"]
[Site "Vlissingen"]
[Date "2022.08.11"]
[Round "7.22"]
[White "Zevenhuizen, Daniel"]
[Black "Galle, Andre"]
[Result "1/2-1/2"]
[ECO "A04"]
[WhiteElo "2168"]
[BlackElo "1999"]
[Annotator "TA"]
[PlyCount "47"]
[EventDate "2022.08.05"]
[EventType "swiss"]
[EventCountry "NED"]
[SourceTitle "playchess.com"]
[Source "ChessBase"]
[SourceQuality "1"]
[TimeControl "40/5400+30:1800+30"]

{[%evp 12,47,8,0,37,-7,0,0,-8,-16,-17,-33,-49,-39,-50,-70,-25,-23,-27,-35,-24,-34,-14,-117,-75,-58,-72,-72,-17,-47,-79,-186,-190,-147,-118,-118,-76,-63]} 1. e4 {[%emt 0:03:51]} e6 {[%emt 0:00:06]} 2. d3 {[%emt 0:00:56]} c5 {[%emt 0:01:42]} 3. Nf3 {[%emt 0:00:07]} Nc6 {[%emt 0:00:28]} 4. g3 {[%emt 0:00:05]} g6 {[%emt 0:00:32]} 5. Bg2 {[%emt 0:00:21]} Bg7 {[%emt 0:00:31]} 6. O-O {[%emt 0:00:28]} Nge7 {[%emt 0:00:32]} 7. Re1 {[%emt 0:01:26]} h6 {[%emt 0:05:25] A04: Unusual lines after 1 Nf3 and King's Indian Attack.} 8. h4 {[%emt 0:05:06]} d6 {[%emt 0:03:42]} 9. c3 {[%emt 0:02:39]} e5 {[%emt 0:04:47] Against d4. The position is equal.} 10. Na3 {[%emt 0:03:13]} O-O {[%emt 0:02:39]} 11. Be3 {[%emt 0:08:47][%cal Ob2b4]} f5 {[%emt 0:17:09]} 12. Qd2 {[%emt 0:01:54]} Kh7 {[%emt 0:02:53] [#]} 13. Rab1 $146 {[%emt 0:07:10]} ({Predecessor:} 13. Nh2 Ng8 14. exf5 gxf5 15. f4 Nf6 16. fxe5 Nxe5 17. d4 cxd4 18. cxd4 Ng6 19. Bf2 {0-1 (28) Latorre Abad,F (2100)-Roche Simon,M (2141) Spain 2011}) 13... Rb8 {[%emt 0:09:49]} 14. b4 {[%emt 0:11:41]} cxb4 {[%emt 0:03:11]} 15. cxb4 {[%emt 0:01:34]} b5 {[%emt 0:02:50]} 16. Rbc1 {[%emt 0:14:45][%cal Oh4h5]} Bd7 {[%emt 0:02:40]} 17. h5 {[%emt 0:11:49]} (17. Nb1 $11) 17... f4 {[%emt 0:14:02]} 18. gxf4 {[%emt 0:00:12]} exf4 {[%emt 0:00:38]} 19. Bxf4 {[%emt 0:00:20] [#]} Ne5 {[%emt 0:02:58]} (19... Bg4 $1 $17 {[%cal Rg4f3] Threatens to win with ...Bxf3.} 20. e5 (20. hxg6+ Nxg6 21. Bg3 Bxf3 $15) 20... Bxh5 21. exd6 Nd5 22. Rxc6 Rxf4) 20. Nh2 {[%emt 0:07:58]} gxh5 {[%emt 0:06:44] White must now prevent ...N7g6.} 21. d4 {[%emt 0:00:23]} (21. Be3 $17 {keeps fighting.}) 21... N7g6 $19 {[%emt 0:04:04]} 22. Be3 {[%emt 0:00:10]} Ng4 {[%emt 0:01:13]} 23. Nxg4 {[%emt 0:03:22]} hxg4 {[%emt 0:00:20]} 24. e5 {[%emt 0:00:05] Weighted Error Value: White=0.25 (precise) /Black=0.13 (very precise)} 1/2-1/2

[Event "24th Hoogeschool Zeeland 2022"]
[Site "Vlissingen"]
[Date "2022.08.11"]
[Round "7.23"]
[White "Gorny, Michael"]
[Black "Tiggelman, Rene"]
[Result "0-1"]
[ECO "B12"]
[WhiteElo "1962"]
[BlackElo "2165"]
[Annotator "TA"]
[PlyCount "134"]
[EventDate "2022.08.05"]
[EventType "swiss"]
[EventCountry "NED"]
[SourceTitle "playchess.com"]
[Source "ChessBase"]
[SourceQuality "1"]
[TimeControl "40/5400+30:1800+30"]

{[%evp 9,133,22,52,22,21,21,28,30,29,17,81,77,83,93,90,63,95,92,81,55,110,79,94,58,60,64,99,31,126,131,124,135,176,128,148,41,74,90,53,54,44,20,27,0,47,0,0,0,0,-9,0,-228,-221,-205,-141,-187,0,-106,-65,-151,-144,-186,-182,-159,-93,-93,-100,-97,-78,-120,-116,-118,-100,-94,-106,-170,-87,-91,-66,-234,-242,-307,-312,-503,-503,-503,-459,-452,-355,-419,-298,-360,-270,-270,-270,-4301,-592,-29967,-29968,-29970,-29971,-29970,-29973,-29970,-19,-29973,-29975,-29975,-29976,-29974,-29977,-29977,-29978,-29978,-29979,-29979,-29980,-29980,-29981,-29984,-29985,-29986,-29985,-29991,-29992,-29999]} 1. e4 {[%emt 0:00:03]} c6 {[%emt 0:01:09]} 2. d4 {[%emt 0:00:21]} d5 {[%emt 0:00:05]} 3. e5 {[%emt 0:00:07]} c5 {[%emt 0:00:06]} 4. Nf3 {[%emt 0:00:34]} Nc6 {[%emt 0:00:17]} 5. dxc5 {[%emt 0:02:12]} e6 {[%emt 0:00:10]} 6. a3 {[%emt 0:00:38] B12: Caro-Kann: Advance Variation.} Bxc5 {[%emt 0:02:17]} 7. b4 {[%emt 0:00:18] Against Qa5} Bb6 {[%emt 0:03:11]} 8. Bb2 {[%emt 0:02:04] White has an edge.} Nge7 {[%emt 0:08:58]} 9. Nbd2 {[%emt 0:04:35] [#]} Nf5 $146 {[%emt 0:01:54]} (9... Bc7 $11) ({Predecessor:} 9... Ng6 10. b5 Na5 11. h4 h6 12. h5 Ne7 13. Bd3 Bd7 14. Qe2 Rc8 15. a4 a6 {½-½ (15) Nestorovic,N (2450)-Ghaem Maghami,E (2537) Philadelphia 2018}) 10. c4 $16 {[%emt 0:04:55][%cal Bc2c4,Bc4c5][%mdl 32]} O-O {[%emt 0:01:54]} 11. c5 {[%emt 0:01:57]} Bc7 {[%emt 0:00:10]} 12. b5 {[%emt 0:01:28]} Nce7 {[%emt 0:08:12]} 13. Bd3 $1 {[%emt 0:08:13]} Ng6 {[%emt 0:02:22]} 14. g3 {[%emt 0:00:46] Inhibits Nf4.} Nh6 {[%emt 0:01:40]} ({Better is} 14... f6 $14) 15. O-O {[%emt 0:06:07]} f6 {[%emt 0:03:44][%cal Rc7e5]} 16. Bxg6 {[%emt 0:06:18]} hxg6 {[%emt 0:01:30]} 17. Qc2 {[%emt 0:01:53]} f5 {[%emt 0:04:22]} 18. h4 {[%emt 0:03:50]} ({White should play} 18. a4 $16) 18... Nf7 {[%emt 0:04:11]} (18... Qe8 $1 $14) 19. Kg2 {[%emt 0:00:33]} Qe8 {[%emt 0:05:30]} 20. a4 {[%emt 0:01:58]} Bd8 {[%emt 0:05:17]} 21. Bd4 {[%emt 0:02:24]} (21. Nb3 $18) 21... Bd7 {[%emt 0:01:20]} 22. Qb3 {[%emt 0:00:33]} (22. Be3 $16) 22... g5 {[%emt 0:04:34]} 23. hxg5 {[%emt 0:03:41]} Nxg5 {[%emt 0:00:12]} 24. Nxg5 {[%emt 0:01:29]} Bxg5 {[%emt 0:00:11]} 25. Nf3 {[%emt 0:00:45]} Be7 {[%emt 0:00:39]} 26. Rh1 {[%emt 0:00:40]} Rc8 {[%emt 0:02:23]} (26... Qg6 $11) 27. Qe3 {[%emt 0:06:58]} (27. Qd3 $14) 27... a6 $11 {[%emt 0:03:10]} 28. bxa6 {[%emt 0:09:56]} ({Much weaker is} 28. c6 bxc6 29. bxc6 (29. bxa6 $2 c5 $19) 29... Rxc6 $17) 28... bxa6 {[%emt 0:00:09]} 29. a5 {[%emt 0:03:00]} Bb5 {[%emt 0:01:37][%cal Of5f4]} 30. Rac1 $2 {[%emt 0:04:07]} (30. Ng5 $11 Qg6 31. Nh3) 30... f4 $1 $19 {[%emt 0:01:22]} 31. Qd2 {[%emt 0:03:18]} Qg6 {[%emt 0:07:01]} 32. Rc3 {[%emt 0:00:21]} (32. Rh3 $17) 32... Rf5 $2 {[%emt 0:00:56]} (32... fxg3 $19 33. fxg3 Bc4) 33. Rh3 {[%emt 0:01:16]} (33. Nh4 $11 Bxh4 34. Rxh4) 33... Qg4 {[%emt 0:03:51][%cal Ob5f1] Hoping for ...Bf1+!} 34. Qd1 {[%emt 0:03:39] Prevents Bf1+.} (34. Rc1 $1 $15) 34... Rh5 $1 $17 {[%emt 0:12:13] Really sharp! Black is more active.} 35. Rxh5 {[%emt 0:02:30]} Qxh5 {[%emt 0:00:02]} 36. Qh1 {[%emt 0:04:12]} Qxh1+ {[%emt 0:03:47]} (36... Qg4 $142 {And now ...fxg3 would win.} 37. Nh2 Qf5) 37. Kxh1 {[%emt 0:00:06]} fxg3 {[%emt 0:00:08]} 38. fxg3 {[%emt 0:00:10]} Bc4 {[%emt 0:00:08]} 39. Rc1 {[%emt 0:03:49]} Bxc5 {[%emt 0:00:51]} 40. Bxc5 {[%emt 0:04:22]} Rxc5 {[%emt 0:00:07][%mdl 4096] Endgame KRB-KRN} 41. Ng5 {[%emt 0:30:16]} Rxa5 {[%emt 0:20:06]} ({Of course not} 41... d4 $6 42. Nf3 $11) 42. Nxe6 {[%emt 0:00:00]} (42. Kg2 $17) 42... Kf7 {[%emt 0:01:05]} (42... Ra3 $19 43. Kg2 Re3) 43. Nd4 {[%emt 0:00:00]} Ra3 {[%emt 0:00:55]} 44. Kh2 $2 {[%emt 0:00:00]} (44. e6+ $1 $15 Ke7 45. Rb1) 44... Re3 $19 {[%emt 0:02:08]} 45. Nf5 {[%emt 0:00:00]} Rxe5 {[%emt 0:03:08]} 46. Nd6+ {[%emt 0:00:00]} (46. g4) 46... Ke6 {[%emt 0:00:09]} 47. Nxc4 {[%emt 0:00:00]} dxc4 {[%emt 0:00:08]} 48. Rxc4 {[%emt 0:00:00] KR-KR} Kd6 {[%emt 0:02:19] Inhibits Rc6+.} 49. Rc8 {[%emt 0:00:00]} a5 {[%emt 0:00:55][%cal Ba6a5,Ba5a4,Ba4a3][%mdl 32] White must now prevent ...a4.} 50. Kh3 {[%emt 0:00:00]} a4 {[%emt 0:00:57] ...Rh5+ is the strong threat.} 51. Ra8 {[%emt 0:00:00]} Re4 {[%emt 0:00:10]} 52. Ra6+ $2 {[%emt 0:00:00]} (52. Ra7) 52... Kc5 {[%emt 0:01:29] ( -> ...g5)} 53. Ra7 {[%emt 0:00:00]} g5 {[%emt 0:05:04]} 54. Ra5+ {[%emt 0:00:00]} Kb4 {[%emt 0:00:06]} 55. Rxg5 {[%emt 0:00:00]} a3 {[%emt 0:00:07]} 56. Rf5 {[%emt 0:01:48]} Re1 $2 {[%emt 0:04:06]} (56... a2 {mates} 57. Rf1 Kc5 58. Ra1 Ra4 59. g4 Kd4 60. Kh4 Ke5 61. Kg5 Ra5 62. Kh6 Kf6 63. Rf1+ Ke7 64. Re1+ Kf7 65. Rf1+ Ke6 66. Re1+ Kf6 67. Ra1 Kf7 68. Rf1+ Ke7 69. Re1+ Kf7 70. Ra1 Kg8 71. Kg6 Ra8 72. Kf5 Kf7 73. Kf4 Kg6 74. Ke4 Kg7 75. Kd4 Kf7 76. Kc3 Ra4 77. Kb3 Rxg4 78. Rxa2 Kg6 79. Kc3 Kg5 80. Kd3 Kf6 81. Ra8 Kf5 82. Rf8+ Ke6 83. Re8+ Kf6 84. Rh8 Rg3+ 85. Ke4 Rg4+ 86. Kf3 Rc4 87. Rf8+ Ke7 88. Rh8 Kf6 89. Rf8+ Ke7 90. Rh8 Kf6) 57. Rf4+ $2 {[%emt 0:01:36][%mdl 8192] [#]} (57. Rf2 $11) 57... Kb3 $1 {[%emt 0:00:05] Black mates.} 58. Rf3+ {[%emt 0:00:16] [#]} Kb2 $1 {[%emt 0:00:01]} 59. Rf2+ {[%emt 0:04:02]} Kb1 {[%emt 0:00:05]} 60. g4 {[%emt 0:00:12]} a2 {[%emt 0:00:12]} 61. Rxa2 {[%emt 0:01:03]} Kxa2 {[%emt 0:00:06] KR-KP} 62. g5 {[%emt 0:00:58]} Kb3 {[%emt 0:00:06]} 63. Kg4 {[%emt 0:00:08]} Kc4 {[%emt 0:00:05]} 64. g6 {[%emt 0:00:40]} Kd5 {[%emt 0:00:07]} 65. Kg5 {[%emt 0:01:07]} Ke6 {[%emt 0:00:21]} 66. Kh6 {[%emt 0:01:17]} Kf6 {[%emt 0:00:09][%cal Re1h1]} 67. g7 {[%emt 0:00:06]} Rh1# {[%emt 0:00:07] Black used his chance.  Weighted Error Value: White=0.68/Black=0.33} 0-1

[Event "24th Hoogeschool Zeeland 2022"]
[Site "Vlissingen"]
[Date "2022.08.11"]
[Round "7.24"]
[White "Boelhouwer, Collin"]
[Black "Saketh, Pedagandham"]
[Result "0-1"]
[ECO "B99"]
[WhiteElo "2151"]
[BlackElo "1928"]
[Annotator "TA"]
[PlyCount "82"]
[EventDate "2022.08.05"]
[EventType "swiss"]
[EventCountry "NED"]
[SourceTitle "playchess.com"]
[Source "ChessBase"]
[SourceQuality "1"]
[TimeControl "40/5400+30:1800+30"]

{[%evp 23,82,0,0,0,0,0,0,0,15,-35,-46,-62,-57,-90,-95,-84,-84,-102,-93,-94,-60,-40,-39,-118,-91,-134,-130,-131,-120,-146,-144,-131,-133,-137,-128,-180,-174,-178,-162,-180,-169,-174,-202,-228,-204,-219,-208,-272,-267,-279,-286,-335,-304,-316,-294,-560,-541,-530,-468,-551,-497]} 1. e4 {[%emt 0:00:03]} c5 {[%emt 0:10:12]} 2. Nf3 {[%emt 0:00:11]} d6 {[%emt 0:00:11]} 3. d4 {[%emt 0:00:13]} cxd4 {[%emt 0:00:09]} 4. Nxd4 {[%emt 0:00:45]} Nf6 {[%emt 0:00:13]} 5. Nc3 {[%emt 0:00:07]} a6 {[%emt 0:00:07]} 6. Bg5 {[%emt 0:00:34]} e6 {[%emt 0:01:05]} 7. f4 {[%emt 0:01:45]} Be7 {[%emt 0:00:19]} 8. Qf3 {[%emt 0:00:12]} Qc7 {[%emt 0:00:33]} 9. O-O-O {[%emt 0:00:16]} Nbd7 {[%emt 0:00:40]} 10. g4 {[%emt 0:02:34]} h6 {[%emt 0:01:28]} 11. Bh4 {[%emt 0:01:49]} g5 {[%emt 0:01:44]} 12. fxg5 {[%emt 0:01:06] 12.e5 is not played anymore.} Ne5 {[%emt 0:00:54][%csl LRf3,LRg4]} 13. Qg3 {[%emt 0:03:48] 13.Qe2 might become the main line. B99: Sicilian Najdorf: 6 Bg5 e6 7 f4 Be7 8 Qf3 Qc7 9 0-0-0 Nbd7.} Nfxg4 {[%emt 0:01:07]} 14. gxh6 {[%emt 0:05:25]} Bxh4 {[%emt 0:00:46]} 15. Qxh4 {[%emt 0:00:09] The position is equal.} Qe7 {[%emt 0:00:25]} 16. Qg3 {[%emt 0:03:16]} ({Much weaker is} 16. Qxe7+ Kxe7 17. Rg1 Bd7 $17) ({Better is} 16. Qe1 $1 $11) 16... Qg5+ $15 {[%emt 0:01:10]} 17. Kb1 {[%emt 0:00:30] [#] Hoping for Nf3.} Qe3 {[%emt 0:01:27] Prevents Nf3. And now ...Qxg3 would win.} 18. Qxe3 {[%emt 0:11:06]} ({Not} 18. Ndb5 $2 axb5 19. Bxb5+ Bd7 20. Qxe3 Nxe3 21. Rxd6 Bc6 22. Bxc6+ bxc6 $19) 18... Nxe3 {[%emt 0:00:19]} 19. Re1 {[%emt 0:01:08]} Nxf1 {[%emt 0:00:43]} 20. Rexf1 {[%emt 0:00:35]} Rxh6 {[%emt 0:00:18]} 21. Nf3 {[%emt 0:04:58]} Nxf3 {[%emt 0:08:23]} 22. Rxf3 {[%emt 0:00:49]} Bd7 {[%emt 0:00:25] [#]} 23. h4 $146 {[%emt 0:04:57] Black continues to play with concentration.} (23. Rhf1 $15) ({Predecessor:} 23. Rhf1 Rh7 24. R1f2 Ke7 25. b3 Rah8 26. h3 Bc6 27. Rd3 Rxh3 28. Rfd2 Rxd3 29. cxd3 {0-1 (53) Nithander,V (2232)-Lanin,A (2424) Herceg Novi 2005}) 23... Bc6 {[%emt 0:03:05]} 24. Rf4 {[%emt 0:22:17]} Ke7 {[%emt 0:06:17]} 25. Rhf1 {[%emt 0:06:36]} Rf8 {[%emt 0:00:35]} 26. b3 {[%emt 0:08:18]} e5 {[%emt 0:07:55]} 27. Rg4 {[%emt 0:01:32]} Rfh8 {[%emt 0:05:40]} 28. Rg7 {[%emt 0:08:26]} Rf6 {[%emt 0:00:54]} 29. Rxf6 {[%emt 0:00:08]} (29. Rh1 $17) 29... Kxf6 $17 {[%emt 0:00:08][%mdl 4096] Endgame KRB-KRN} 30. Rg4 {[%emt 0:00:16]} Ke7 {[%emt 0:16:07]} 31. Kc1 {[%emt 0:03:27] [#]} Bd7 $1 {[%emt 0:00:24]} 32. Nd5+ {[%emt 0:01:02]} Kf8 {[%emt 0:00:07]} 33. Rg1 {[%emt 0:02:02]} Rxh4 {[%emt 0:00:15]} 34. Re1 {[%emt 0:04:58]} Bc6 {[%emt 0:01:57]} 35. c4 {[%emt 0:00:09]} Bxd5 {[%emt 0:00:24]} 36. cxd5 $19 {[%emt 0:00:13] KR-KR} Ke7 {[%emt 0:01:09][%cal Of7f5]} 37. Re2 {[%emt 0:00:22]} b5 {[%emt 0:01:47][%cal Of7f5]} 38. Kc2 {[%emt 0:00:34]} f5 {[%emt 0:00:28][%cal Bf7f5,Bf5f4][%mdl 32]} 39. Rg2 $2 {[%emt 0:00:25]} (39. exf5 {was the only defense.} Kf6 40. Kd3) 39... Rxe4 {[%emt 0:02:41] Black is clearly winning.} 40. Rg7+ {[%emt 0:00:13]} Ke8 {[%emt 0:00:31]} 41. Kc3 {[%emt 0:33:02]} f4 {[%emt 0:31:00] Weighted Error Value: White=0.40/Black=0.05 (flawless)} 0-1

[Event "24th Hoogeschool Zeeland 2022"]
[Site "Vlissingen"]
[Date "2022.08.12"]
[Round "8.1"]
[White "Lalith Babu M R"]
[Black "Ponomariov, Ruslan"]
[Result "1/2-1/2"]
[ECO "D43"]
[WhiteElo "2549"]
[BlackElo "2642"]
[Annotator "TA"]
[PlyCount "42"]
[EventDate "2022.08.05"]
[EventType "swiss"]
[EventCountry "NED"]
[SourceTitle "playchess.com"]
[Source "ChessBase"]
[SourceQuality "1"]
[TimeControl "40/5400+30:1800+30"]

{[%evp 13,42,24,27,7,19,17,36,25,22,39,27,27,54,54,45,44,70,64,66,52,62,50,50,18,16,0,49,0,36,0,68]} 1. d4 {[%emt 0:02:07] Lutz,C} Nf6 {[%emt 0:00:14]} 2. c4 {[%emt 0:00:06]} e6 {[%emt 0:00:12]} 3. Nf3 {[%emt 0:00:04]} d5 {[%emt 0:00:11]} 4. Nc3 {[%emt 0:00:05]} c6 {[%emt 0:00:11]} 5. Bg5 {[%emt 0:00:05]} h6 {[%emt 0:00:17]} 6. Bxf6 {[%emt 0:00:05]} Qxf6 {[%emt 0:00:08]} 7. e3 {[%emt 0:00:05]} g6 {[%emt 0:02:42]} 8. Be2 {[%emt 0:00:08] D43: Semi-Slav: 5 Bg5 h6.} Bg7 {[%emt 0:09:19]} 9. O-O {[%emt 0:00:35]} Nd7 {[%emt 0:05:54]} 10. cxd5 {[%emt 0:11:25] White is slightly better. The main line 10.cxd5 scores better than 10.e4.} exd5 {[%emt 0:00:32]} 11. b4 {[%emt 0:00:05][%cal Bb2b4,Bb4b5][%mdl 32]} Qd6 {[%emt 0:10:39] [#]} 12. b5 $146 {[%emt 0:07:20]} ({Predecessor:} 12. Qb3 O-O 13. b5 Nb6 14. Rac1 Bf5 15. a4 Nd7 16. a5 Rab8 17. Qa2 Rfc8 18. a6 {1-0 (33) Manor,I (2510)-Polgar,S (2495) Rishon Le Ziyyon 1996 CBM 053 [Lutz,C]}) 12... c5 {[%emt 0:08:03]} 13. dxc5 {[%emt 0:01:02]} Nxc5 {[%emt 0:00:09] [#]} 14. Nxd5 {[%emt 0:27:28]} O-O {[%emt 0:02:45]} (14... Be6 15. Nf4) 15. Rc1 {[%emt 0:00:16]} Rd8 {[%emt 0:00:06]} 16. Qc2 {[%emt 0:10:18]} b6 {[%emt 0:06:51] aiming for ...Bf5.} 17. Nb4 {[%emt 0:07:10]} Bf5 {[%emt 0:02:25]} 18. Qc4 {[%emt 0:00:12]} Be6 {[%emt 0:00:30]} 19. Qc2 {[%emt 0:01:35]} Bf5 {[%emt 0:00:26] This bishop pair is nice.} 20. Qc4 {[%emt 0:00:29]} Be6 {[%emt 0:00:07]} 21. Qc2 {[%emt 0:00:28]} Bf5 {[%emt 0:01:16] Weighted Error Value: White=0.13 (very precise) /Black=0.06 (flawless)} 1/2-1/2